fUSD/lending_fUSD_20260512
["ID","MTS","AMOUNT","RATE_DAILY","PERIOD"]
[422065937,1778543442000,-500.0,0.00040546,30]
[422065939,1778543442000,-500.0,0.00040546,30]
[422065934,1778543442000,-443.28,0.0004052,7]
[422065938,1778543442000,-1030.0,0.00040546,30]
[422065940,1778543442000,-5762.24692352,0.00040546,30]
[422065944,1778543442000,-500.0,0.00040546,30]
[422065947,1778543442000,-500.0,0.00040546,30]
[422065954,1778543442000,-151.0,0.00040546,30]
[422065928,1778543442000,-500.0,0.000405,60]
[422065942,1778543442000,-518.5,0.00040546,30]
[422065923,1778543442000,-22500.0,0.00040375,120]
[422065896,1778543442000,-900.0,0.0004,30]
[422065910,1778543442000,-917.55,0.000402,30]
[422065897,1778543442000,-900.0,0.0004,30]
[422065891,1778543442000,-900.0,0.0004,30]
[422065893,1778543442000,-900.0,0.0004,30]
[422065892,1778543442000,-900.0,0.0004,30]
[422065894,1778543442000,-900.0,0.0004,30]
[422065890,1778543442000,-900.0,0.0004,30]
[422065895,1778543442000,-900.0,0.0004,30]
[422065901,1778543442000,-900.0,0.0004,30]
[422065899,1778543442000,-900.0,0.0004,30]
[422065902,1778543442000,-1036.0,0.0004,30]
[422065903,1778543442000,-3989.14,0.0004002,120]
[422065900,1778543442000,-900.0,0.0004,30]
[422065906,1778543442000,-3601.28561189,0.00040102,12]
[422065905,1778543442000,-509.52968569,0.00040098,2]
[422065904,1778543442000,-500.0,0.0004003,30]
[422065908,1778543442000,-3601.28561184,0.00040102,12]
[422065918,1778543442000,-255.83973053,0.00040296,2]
[422065911,1778543442000,-4884.48,0.000402,14]
[422065907,1778543442000,-3601.28561184,0.00040102,12]
[422065912,1778543442000,-2494.5865,0.00040269,2]
[422065913,1778543442000,-249.1472,0.00040269,2]
[422065914,1778543442000,-2315.2621,0.00040269,2]
[422065915,1778543442000,-1562.0,0.00040274,30]
[422065909,1778543442000,-2494.5861,0.00040132,2]
[422065916,1778543442000,-315.45,0.0004029,60]
[422065917,1778543442000,-404.23,0.0004029,60]
[422065949,1778543442000,-151.0,0.00040546,30]
[422065941,1778543442000,-151.0,0.00040546,30]
[422065943,1778543442000,-1068.11,0.00040546,30]
[422065989,1778543442000,-151.0,0.00040546,30]
[422065990,1778543442000,-151.0,0.00040546,30]
[422065991,1778543442000,-500.0,0.00040546,30]
[422065984,1778543442000,-152.0,0.00040546,30]
[422065982,1778543442000,-500.0,0.00040546,30]
[422065983,1778543442000,-151.0,0.00040546,30]
[422065981,1778543442000,-500.0,0.00040546,30]
[422065988,1778543442000,-152.0,0.00040546,30]
[422065986,1778543442000,-500.0,0.00040546,30]
[422065987,1778543442000,-500.0,0.00040546,30]
[422065985,1778543442000,-151.0,0.00040546,30]
[422066000,1778543442000,-151.0,0.00040546,30]
[422065980,1778543442000,-151.0,0.00040546,30]
[422065992,1778543442000,-500.0,0.00040546,30]
[422065993,1778543442000,-152.0,0.00040546,30]
[422065995,1778543442000,-151.0,0.00040546,30]
[422066005,1778543442000,-500.0,0.00040546,30]
[422066007,1778543442000,-1030.59322867,0.00040546,30]
[422065997,1778543442000,-1000.0,0.00040546,30]
[422065996,1778543442000,-500.0,0.00040546,30]
[422066003,1778543442000,-151.0,0.00040546,30]
[422065999,1778543442000,-152.0,0.00040546,30]
[422066010,1778543442000,-151.0,0.00040546,30]
[422066009,1778543442000,-152.0,0.00040546,30]
[422066011,1778543442000,-500.0,0.00040546,30]
[422065946,1778543442000,-537.6845,0.00040546,30]
[422065994,1778543442000,-151.0,0.00040546,30]
[422065973,1778543442000,-151.0,0.00040546,30]
[422066001,1778543442000,-500.0,0.00040546,30]
[422065972,1778543442000,-500.0,0.00040546,30]
[422065974,1778543442000,-252.10967032,0.00040546,30]
[422065948,1778543442000,-1107.63007,0.00040546,30]
[422065945,1778543442000,-151.0,0.00040546,30]
[422065953,1778543442000,-151.0,0.00040546,30]
[422065952,1778543442000,-1148.61238259,0.00040546,30]
[422065951,1778543442000,-557.5788265,0.00040546,30]
[422065966,1778543442000,-259.15976462,0.00040546,30]
[422065959,1778543442000,-620.0,0.00040546,30]
[422065957,1778543442000,-1191.11104075,0.00040546,30]
[422065958,1778543442000,-151.0,0.00040546,30]
[422065961,1778543442000,-500.0,0.00040546,30]
[422065963,1778543442000,-151.0,0.00040546,30]
[422065964,1778543442000,-642.94,0.00040546,30]
[422065950,1778543442000,-500.0,0.00040546,30]
[422065956,1778543442000,-504.33965857,0.00040546,30]
[422065965,1778543442000,-152.0,0.00040546,30]
[422065976,1778543442000,-152.0,0.00040546,30]
[422065968,1778543442000,-1280.88388878,0.00040546,30]
[422065979,1778543442000,-152.0,0.00040546,30]
[422065977,1778543442000,-500.0,0.00040546,30]
[422065975,1778543442000,-452.28344141,0.00040546,30]
[422065971,1778543442000,-152.0,0.00040546,30]
[422065970,1778543442000,-666.72878,0.00040546,30]
[422065969,1778543442000,-151.0,0.00040546,30]
[422065962,1778543442000,-1235.18214925,0.00040546,30]
[422065960,1778543442000,-156.587,0.00040546,30]
[422065967,1778543442000,-500.0,0.00040546,30]
[422065978,1778543442000,-151.0,0.00040546,30]
[422066050,1778543443000,-151.0,0.00040546,30]
[422066052,1778543443000,-500.0,0.00040546,30]
[422066048,1778543443000,-162.380719,0.00040546,30]
[422066051,1778543443000,-205.36717928,0.00040546,30]
[422066046,1778543443000,-251.0,0.00040546,30]
[422066056,1778543443000,-500.0,0.00040546,30]
[422066043,1778543443000,-500.0,0.00040546,30]
[422066042,1778543443000,-151.0,0.00040546,30]
[422066049,1778543443000,-152.0,0.00040546,30]
[422066045,1778543443000,-151.0,0.00040546,30]
[422066044,1778543443000,-152.0,0.00040546,30]
[422066057,1778543443000,-174.61919141,0.00040546,30]
[422066054,1778543443000,-168.3888056,0.00040546,30]
[422066055,1778543443000,-151.0,0.00040546,30]
[422066064,1778543443000,-151.0,0.00040546,30]
[422066061,1778543443000,-181.08010149,0.00040546,30]
[422066036,1778543443000,-151.0,0.00040546,30]
[422066066,1778543443000,-187.78006525,0.00040546,30]
[422066058,1778543443000,-152.0,0.00040546,30]
[422066063,1778543443000,-2345.0,0.00040546,30]
[422066059,1778543443000,-151.0,0.00040546,30]
[422066062,1778543443000,-152.0,0.00040546,30]
[422066060,1778543443000,-500.0,0.00040546,30]
[422066065,1778543443000,-500.0,0.00040546,30]
[422066053,1778543443000,-152.0,0.00040546,30]
[422066034,1778543443000,-151.0,0.00040546,30]
[422066035,1778543443000,-152.0,0.00040546,30]
[422066038,1778543443000,-500.0,0.00040546,30]
[422066018,1778543443000,-500.0,0.00040546,30]
[422066019,1778543443000,-152.0,0.00040546,30]
[422066020,1778543443000,-151.0,0.00040546,30]
[422066012,1778543443000,-151.0,0.00040546,30]
[422066014,1778543443000,-152.0,0.00040546,30]
[422066015,1778543443000,-151.0,0.00040546,30]
[422066016,1778543443000,-500.0,0.00040546,30]
[422066013,1778543443000,-500.0,0.00040546,30]
[422066017,1778543443000,-151.0,0.00040546,30]
[422066031,1778543443000,-500.0,0.00040546,30]
[422066023,1778543443000,-500.0,0.00040546,30]
[422066030,1778543443000,-151.0,0.00040546,30]
[422066024,1778543443000,-152.0,0.00040546,30]
[422066022,1778543443000,-151.0,0.00040546,30]
[422066070,1778543443000,-165.29230854,0.00040546,30]
[422066026,1778543443000,-500.0,0.00040546,30]
[422066027,1778543443000,-151.0,0.00040546,30]
[422066029,1778543443000,-152.0,0.00040546,30]
[422066025,1778543443000,-151.0,0.00040546,30]
[422066021,1778543443000,-500.0,0.00040546,30]
[422066028,1778543443000,-500.0,0.00040546,30]
[422066033,1778543443000,-500.0,0.00040546,30]
[422066039,1778543443000,-156.587,0.00040546,30]
[422066041,1778543443000,-151.0,0.00040546,30]
[422066040,1778543443000,-152.0,0.00040546,30]
[422066037,1778543443000,-151.0,0.00040546,30]
[422066032,1778543443000,-151.0,0.00040546,30]
[422066047,1778543443000,-500.0,0.00040546,30]
[422066067,1778543443000,-151.0,0.00040546,30]
[422066105,1778543443000,-1500.0,0.00040547,30]
[422066106,1778543443000,-1562.0,0.00040548,30]
[422066108,1778543443000,-900.0,0.000406,14]
[422066111,1778543443000,-175.8,0.00040613,120]
[422066114,1778543443000,-3785.33,0.00040676,2]
[422066110,1778543443000,-200.0,0.000406,14]
[422066109,1778543443000,-400.0,0.000406,14]
[422066115,1778543443000,-18997.02043461,0.000407,30]
[422066116,1778543443000,-200.0,0.000407,17]
[422066107,1778543443000,-161.0,0.000406,120]
[422066113,1778543443000,-3989.14,0.00040669,120]
[422066112,1778543443000,-1444.0,0.00040658,120]
[422066124,1778543443000,-22500.0,0.0004075,120]
[422066128,1778543443000,-456211.13136689,0.00040774,2]
[422066125,1778543443000,-400.0,0.0004077,3]
[422066117,1778543443000,-900.0,0.000407,14]
[422066127,1778543443000,-1000.0,0.00040773,120]
[422066126,1778543443000,-400.0,0.0004077,3]
[422066118,1778543443000,-400.0,0.000407,14]
[422066119,1778543443000,-456.39990709,0.000407,12]
[422066121,1778543443000,-1325028.3374558,0.00040718,2]
[422066120,1778543443000,-200.0,0.000407,14]
[422066122,1778543443000,-182.15,0.0004075,120]
[422066123,1778543443000,-198.0,0.0004075,120]
[422066072,1778543443000,-2345.0,0.00040546,30]
[422066104,1778543443000,-171.29688013,0.00040546,30]
[422066102,1778543443000,-162.380719,0.00040546,30]
[422066068,1778543443000,-2345.0,0.00040546,30]
[422066087,1778543443000,-1555.5,0.00040546,30]
[422066069,1778543443000,-500.0,0.00040546,30]
[422066071,1778543443000,-194.72792766,0.00040546,30]
[422066075,1778543443000,-201.93286099,0.00040546,30]
[422066073,1778543443000,-151.0,0.00040546,30]
[422066074,1778543443000,-500.0,0.00040546,30]
[422066077,1778543443000,-151.0,0.00040546,30]
[422066086,1778543443000,-170.0,0.00040546,30]
[422066078,1778543443000,-500.0,0.00040546,30]
[422066082,1778543443000,-225.18697531,0.00040546,30]
[422066083,1778543443000,-151.0,0.00040546,30]
[422066080,1778543443000,-933.27964716,0.00040546,30]
[422066085,1778543443000,-262.22175368,0.00040546,30]
[422066076,1778543443000,-2345.0,0.00040546,30]
[422066081,1778543443000,-217.15233878,0.00040546,30]
[422066097,1778543443000,-219.23011724,0.00040546,30]
[422066079,1778543443000,-209.40437684,0.00040546,30]
[422066099,1778543443000,-228.02704618,0.00040546,30]
[422066092,1778543443000,-196.59114265,0.00040546,30]
[422066103,1778543443000,-168.3888056,0.00040546,30]
[422066089,1778543443000,-182.81273,0.00040546,30]
[422066096,1778543443000,-211.40802048,0.00040546,30]
[422066101,1778543443000,-156.587,0.00040546,30]
[422066094,1778543443000,-203.86501493,0.00040546,30]
[422066090,1778543443000,-189.57680101,0.00040546,30]
[422066088,1778543443000,-176.29,0.00040546,30]
[422066084,1778543443000,-156.587,0.00040546,30]
[422066098,1778543443000,-151.0,0.00040546,30]
[422066145,1778543444000,-329.77,0.00025811,2]
[422066142,1778543444000,-329.77,0.00025378,7]
[422066140,1778543444000,-12641.53242969,0.00037711,2]
[422066136,1778543444000,-220.01,0.00026575,7]
[422066135,1778543444000,-219.84,0.00026575,2]
[422066137,1778543444000,-483.72999423,0.00036982,2]
[422066139,1778543444000,-360.0,0.00036982,30]
[422066132,1778543444000,-329.77,0.0002509,2]
[422066134,1778543444000,-219.84,0.00026574,7]
[422066131,1778543444000,-329.77,0.00024946,2]
[422066133,1778543444000,-219.84,0.00026574,7]
[422066129,1778543444000,-329.77,0.00024658,2]
[422066138,1778543444000,-309.60276076,0.00036982,2]
[422066130,1778543444000,-329.77,0.00024802,7]
[422066141,1778543444000,-329.77,0.00025234,7]
[422066143,1778543444000,-329.77,0.00025523,2]
[422066144,1778543444000,-329.77,0.00025667,7]
[422066158,1778543444000,-1000.0,0.00040774,2]
[422066156,1778543444000,-4974.046847,0.00039302,2]
[422066155,1778543444000,-3373.48792536,0.00037711,2]
[422066150,1778543444000,-300.0,0.00036982,2]
[422066152,1778543444000,-499.97,0.00037077,10]
[422066157,1778543444000,-49877.8523543,0.00040774,2]
[422066153,1778543444000,-6089.2094919,0.00037401,2]
[422066151,1778543444000,-300.0,0.00036982,2]
[422066149,1778543444000,-329.77,0.00026388,2]
[422066147,1778543444000,-329.77,0.00026099,7]
[422066148,1778543444000,-329.77,0.00026243,7]
[422066154,1778543444000,-15421.4929416,0.00037711,2]
[422066146,1778543444000,-329.77,0.00025955,2]
[422066159,1778543445000,-329.77,0.00026532,7]
[422066160,1778543445000,-329.77,0.00026676,2]
[422066162,1778543445000,-268.56544524,0.00026964,7]
[422066164,1778543445000,-329.77,0.00027108,7]
[422066161,1778543445000,-329.77,0.0002682,2]
[422066167,1778543445000,-50.57455476,0.00027397,7]
[422066168,1778543445000,-471.44544525,0.0002901,2]
[422066163,1778543445000,-61.20455476,0.00026964,7]
[422066165,1778543445000,-329.77,0.00027253,2]
[422066166,1778543445000,-279.25544524,0.00027397,7]
[422066171,1778543446000,-1300.26002198,0.0002901,2]
[422066174,1778543446000,-783.91268485,0.0003201,2]
[422066172,1778543446000,-2444.08731515,0.0003201,2]
[422066173,1778543446000,-400.0,0.0003201,2]
[422066170,1778543446000,-1397.6292676,0.0002901,2]
[422066169,1778543446000,-458.66526517,0.0002901,2]
[422066176,1778543446000,-400.0,0.0003501,2]
[422066177,1778543446000,-298.82972872,0.0003501,2]
[422066179,1778543446000,-1117.14215031,0.00036982,2]
[422066181,1778543446000,-763.68244326,0.0003801,2]
[422066178,1778543446000,-300.0,0.00036982,2]
[422066175,1778543446000,-2929.17027128,0.0003501,2]
[422066180,1778543446000,-10118.80183098,0.00038167,2]
[422066185,1778543752000,1306.8,0.00027397,120]
[422066186,1778544059000,170.45,0.0002739,120]
[422066189,1778544221000,171.52,0.00026961,120]
[422066188,1778544221000,-1100.0,0.000148,5]
[422066190,1778544235000,-686.375,0.000147,2]
[422066191,1778544249000,-167.5568005,0.00014885,2]
[422066241,1778544632000,-64294.45611504,0.000149,2]
[422066245,1778544632000,-11127.13152731,0.000149,2]
[422066203,1778544632000,-1050.0,0.000144,5]
[422066202,1778544632000,-150.0,0.00013488,2]
[422066215,1778544632000,-7400.0,0.000148,5]
[422066205,1778544632000,-350.0,0.000144,5]
[422066213,1778544632000,-169.12,0.0001477,2]
[422066211,1778544632000,-5900.0,0.000147,5]
[422066209,1778544632000,-4400.0,0.000146,5]
[422066217,1778544632000,-500.0,0.00014899,2]
[422066219,1778544632000,-500.0,0.00014899,2]
[422066235,1778544632000,-1400.0,0.000149,5]
[422066221,1778544632000,-500.0,0.00014899,2]
[422066207,1778544632000,-2900.0,0.000145,5]
[422066233,1778544632000,-157.8409234,0.000149,2]
[422066230,1778544632000,-10108.68863862,0.000149,2]
[422066238,1778544632000,-933.9881485,0.000149,2]
[422066226,1778544632000,-500.0,0.00014899,2]
[422066223,1778544632000,-500.0,0.00014899,2]
[422066225,1778544632000,-500.0,0.00014899,2]
[422066228,1778544632000,-198.20883558,0.000149,2]
[422066272,1778544638000,-500.0,0.00014899,2]
[422066269,1778544638000,-500.0,0.00014899,2]
[422066268,1778544638000,-500.0,0.00014899,2]
[422066266,1778544638000,-500.0,0.00014899,2]
[422066267,1778544638000,-500.0,0.00014899,2]
[422066264,1778544638000,-500.0,0.00014899,2]
[422066263,1778544638000,-330.68723679,0.00014899,2]
[422066265,1778544638000,-582.14011595,0.00014899,2]
[422066261,1778544638000,-500.0,0.00014899,2]
[422066271,1778544638000,-500.0,0.00014899,2]
[422066260,1778544638000,-500.0,0.00014899,2]
[422066259,1778544638000,-500.0,0.00014899,2]
[422066258,1778544638000,-80.46396448,0.00014899,2]
[422066257,1778544638000,-419.53603552,0.00014899,2]
[422066255,1778544638000,-500.0,0.00014899,2]
[422066256,1778544638000,-500.0,0.00014899,2]
[422066262,1778544638000,-266.84171031,0.00014899,2]
[422066275,1778544638000,-500.0,0.00014899,2]
[422066270,1778544638000,-500.0,0.00014899,2]
[422066274,1778544638000,-500.0,0.00014899,2]
[422066309,1778544638000,-1598937.73237715,0.00015,2]
[422066314,1778544638000,-2023.2261267,0.00015,2]
[422066311,1778544638000,-3861522.33595944,0.00015,2]
[422066276,1778544638000,-500.0,0.00014899,2]
[422066302,1778544638000,-412.10467602,0.00014999,2]
[422066304,1778544638000,-235.99828949,0.00014999,2]
[422066287,1778544638000,-500.0,0.00014899,2]
[422066285,1778544638000,-500.0,0.00014899,2]
[422066291,1778544638000,-4876.670399,0.000149,2]
[422066306,1778544638000,-165.19880264,0.00014999,2]
[422066293,1778544638000,-252.19,0.00014985,2]
[422066298,1778544638000,-158.90198871,0.0001499,2]
[422066300,1778544638000,-158.90198871,0.0001499,2]
[422066296,1778544638000,-158.90198871,0.0001499,2]
[422066281,1778544638000,-500.0,0.00014899,2]
[422066273,1778544638000,-500.0,0.00014899,2]
[422066283,1778544638000,-500.0,0.00014899,2]
[422066278,1778544638000,-500.0,0.00014899,2]
[422066289,1778544638000,-176331.95251727,0.000149,2]
[422066486,1778544640000,-723.2391929,0.00015,2]
[422066485,1778544640000,-398881.10044611,0.00015,2]
[422066597,1778544647000,-1889.15941613,0.000149,2]
[422066599,1778544647000,-12221.22536232,0.000149,2]
[422066598,1778544647000,-3316.03123134,0.000149,2]
[422066600,1778544647000,-478646.65823928,0.00015,2]
[422066602,1778544648000,-1264.90287829,0.00015,2]
[422066603,1778544648000,-54021.75797896,0.00015,2]
[422066604,1778544648000,-917.55,0.00015,2]
[422066605,1778544648000,-10108.68863858,0.00015012,2]
[422066606,1778544648000,-10108.68863858,0.00015124,2]
[422066607,1778544648000,-10108.68863858,0.00015237,2]
[422066609,1778544648000,-10108.68863858,0.00015349,2]
[422066608,1778544648000,-175.81,0.00015348,2]
[422066610,1778544648000,-688.24,0.00015365,2]
[422066612,1778544648000,-10108.68863858,0.00015573,2]
[422066617,1778544648000,-2255.79425657,0.0001611,15]
[422066613,1778544648000,-10108.68863858,0.00015686,2]
[422066616,1778544648000,-10108.68863858,0.0001591,2]
[422066614,1778544648000,-688.24,0.00015749,2]
[422066615,1778544648000,-10108.68863858,0.00015798,2]
[422066611,1778544648000,-10108.68863858,0.00015461,2]
[422066618,1778544681000,166.15649347,0.00012665,30]
[422066621,1778544981000,166.73887863,0.0001,30]
[422066622,1778545281000,180.78011544,0.0001,30]
[422066643,1778545832000,-152.0,0.00015716,7]
[422066641,1778545832000,-167.63,0.0001515,2]
[422066642,1778545832000,-152.0,0.00015319,6]
[422066639,1778545832000,-152.0,0.00014922,5]
[422066648,1778545832000,-2535.23544612,0.0001611,15]
[422066640,1778545832000,-7651.1357886,0.0001504,2]
[422066637,1778545832000,-2619.72,0.00014708,2]
[422066646,1778545832000,-154.98,0.00016097,2]
[422066638,1778545832000,-154.98,0.00014791,2]
[422066635,1778545832000,-500.0,0.00014708,2]
[422066634,1778545832000,-300.0,0.00014707,2]
[422066631,1778545832000,-152.0,0.00014127,3]
[422066629,1778545832000,-154.98,0.00013485,2]
[422066630,1778545832000,-250.0,0.00014,2]
[422066632,1778545832000,-152.0,0.00014525,4]
[422066636,1778545832000,-392.1,0.00014708,2]
[422066628,1778545832000,-154.98,0.00012179,2]
[422066627,1778545832000,-154.98,0.00010873,2]
[422066626,1778545832000,-417.96956522,0.0001,2]
[422066633,1778545832000,-480.0,0.00014707,2]
[422066645,1778545832000,-151.0,0.00015937,2]
[422066647,1778545832000,-11629.82760185,0.0001611,15]
[422066649,1778545832000,-2524.01884188,0.0001611,15]
[422066677,1778545832000,-420.0,0.0001814,2]
[422066679,1778545832000,-2318.46368358,0.0001814,2]
[422066674,1778545832000,-1254.09285305,0.0001814,2]
[422066673,1778545832000,-3383.42896817,0.0001814,2]
[422066671,1778545832000,-8045.54526625,0.0001814,2]
[422066644,1778545832000,-152.0,0.00015716,5]
[422066665,1778545832000,-7393.85317137,0.0001814,2]
[422066659,1778545832000,-519.4426,0.0001804,2]
[422066664,1778545832000,-33073.57670104,0.0001814,2]
[422066668,1778545832000,-1015.79310861,0.0001814,2]
[422066663,1778545832000,-23943.4481266,0.0001804,2]
[422066672,1778545832000,-687.0,0.0001814,2]
[422066654,1778545832000,-161.92,0.00016788,2]
[422066651,1778545832000,-608.0,0.00016438,2]
[422066656,1778545832000,-154.98,0.00017403,2]
[422066650,1778545832000,-150.0,0.00016337,2]
[422066652,1778545832000,-392.1,0.00016546,2]
[422066655,1778545832000,-414.76,0.00017116,2]
[422066660,1778545832000,-34739.7971734,0.0001804,2]
[422066653,1778545832000,-175.42,0.00016712,2]
[422066690,1778545838000,-169.67606943,0.00018233,2]
[422066683,1778545838000,-395.13435,0.0001814,2]
[422066682,1778545838000,-7065.62967323,0.0001814,2]
[422066684,1778545838000,-4716.83026371,0.0001814,2]
[422066686,1778545838000,-6275.55825757,0.0001814,2]
[422066687,1778545838000,-1081.16789063,0.0001814,2]
[422066688,1778545838000,-501.41294965,0.00018173,2]
[422066689,1778545838000,-545.221637,0.00018233,2]
[422066685,1778545838000,-5515.79728157,0.0001814,2]
[422066691,1778545838000,-175.59,0.00018333,2]
[422066699,1778545838000,-856.67722924,0.00018483,2]
[422066693,1778545838000,-392.1,0.00018384,2]
[422066692,1778545838000,-167.91,0.00018333,2]
[422066697,1778545838000,-55.99577012,0.00018468,2]
[422066694,1778545838000,-106.2259941,0.0001841,2]
[422066698,1778545838000,-200.0,0.00018468,2]
[422066696,1778545838000,-1382.66422988,0.00018468,2]
[422066695,1778545838000,-501.7740059,0.0001841,2]
[422066724,1778545840000,-500.0,0.00019009,2]
[422066722,1778545840000,-288.61432746,0.00019009,2]
[422066721,1778545840000,-500.0,0.00019009,2]
[422066723,1778545840000,-500.0,0.00019009,2]
[422066728,1778545840000,-500.0,0.00019009,2]
[422066732,1778545840000,-500.0,0.00019009,2]
[422066725,1778545840000,-500.0,0.00019009,2]
[422066727,1778545840000,-500.0,0.00019009,2]
[422066726,1778545840000,-500.0,0.00019009,2]
[422066730,1778545840000,-500.0,0.00019009,2]
[422066729,1778545840000,-500.0,0.00019009,2]
[422066719,1778545840000,-4190.0,0.00019,2]
[422066710,1778545840000,-200.0,0.00018581,2]
[422066717,1778545840000,-167.63,0.00018937,2]
[422066713,1778545840000,-209.16,0.00018821,2]
[422066720,1778545840000,-398.59510971,0.00019,2]
[422066712,1778545840000,-500.0,0.00018712,2]
[422066711,1778545840000,-154.98,0.00018709,2]
[422066714,1778545840000,-150.0,0.00018826,2]
[422066715,1778545840000,-4055.4,0.0001893,2]
[422066716,1778545840000,-2338.02,0.00018937,2]
[422066709,1778545840000,-881.57,0.00018581,2]
[422066708,1778545840000,-1050.0,0.00018483,7]
[422066707,1778545840000,-350.0,0.00018483,2]
[422066718,1778545840000,-166.66,0.00018964,2]
[422066731,1778545840000,-500.0,0.00019009,2]
[422066706,1778545840000,-1643.32277076,0.00018483,2]
[422066745,1778545840000,-881.57,0.00019975,2]
[422066734,1778545840000,-233.61376583,0.00019009,2]
[422066760,1778545840000,-392.1,0.00020223,2]
[422066753,1778545840000,-150.0,0.00020063,2]
[422066754,1778545840000,-150.0,0.00020063,2]
[422066752,1778545840000,-150.0,0.00020055,2]
[422066751,1778545840000,-150.0,0.00020055,2]
[422066756,1778545840000,-150.0,0.00020083,2]
[422066757,1778545840000,-166.66,0.00020161,2]
[422066750,1778545840000,-154.98,0.00020015,2]
[422066758,1778545840000,-167.91,0.00020166,2]
[422066749,1778545840000,-169.0,0.0002,2]
[422066747,1778545840000,-341.0,0.0002,2]
[422066759,1778545840000,-3598.64,0.00020223,2]
[422066755,1778545840000,-189.36130469,0.00020066,2]
[422066746,1778545840000,-301.02522804,0.0002,2]
[422066748,1778545840000,-725.0,0.0002,2]
[422066735,1778545840000,-308.2140116,0.00019009,2]
[422066736,1778545840000,-363.66092569,0.0001901,7]
[422066733,1778545840000,-500.0,0.00019009,2]
[422066738,1778545840000,-23068.26,0.00019251,2]
[422066740,1778545840000,-500.0,0.000193,5]
[422066744,1778545840000,-166.66,0.00019762,2]
[422066737,1778545840000,-881.57,0.00019046,2]
[422066741,1778545840000,-166.66,0.00019363,2]
[422066743,1778545840000,-1852.42,0.00019544,2]
[422066742,1778545840000,-881.57,0.0001951,2]
[422066739,1778545840000,-637.32,0.00019251,2]
[422066801,1778545841000,-252.80293,0.0002254,14]
[422066809,1778545841000,-2619.0,0.00023,30]
[422066808,1778545841000,-4000.0,0.00023,30]
[422066800,1778545841000,-234.822069,0.0002254,14]
[422066802,1778545841000,-402.0,0.00022633,2]
[422066787,1778545841000,-341.0,0.00022,2]
[422066795,1778545841000,-500.0,0.0002225,2]
[422066794,1778545841000,-500.0,0.0002225,2]
[422066796,1778545841000,-608.0,0.00022353,2]
[422066797,1778545841000,-893.22,0.00022466,2]
[422066807,1778545841000,-49126.11882747,0.00023,2]
[422066799,1778545841000,-261.99298,0.0002254,14]
[422066803,1778545841000,-167.63,0.00022725,2]
[422066818,1778545841000,-208.15897961,0.00023635,2]
[422066805,1778545841000,-500.0,0.00022973,2]
[422066804,1778545841000,-4446.45202773,0.000229,2]
[422066810,1778545841000,-341.0,0.00023,2]
[422066812,1778545841000,-169.0,0.00023,2]
[422066822,1778545841000,-341.0,0.00024,2]
[422066813,1778545841000,-1438.66,0.00023085,2]
[422066815,1778545841000,-655.53107534,0.0002327,2]
[422066811,1778545841000,-725.0,0.00023,2]
[422066816,1778545841000,-213.0,0.00023453,5]
[422066814,1778545841000,-714.89770638,0.0002327,2]
[422066821,1778545841000,-373.67981816,0.000239,2]
[422066820,1778545841000,-167.91,0.00023832,2]
[422066790,1778545841000,-169.0,0.00022,2]